[Event "FIDE WCCC G12 2018"]
[Site "Santiago de Compostela"]
[Date "2018.11.07"]
[Round "3"]
[White "Baalla, Nura"]
[Black "Sevcikova, Lucia"]
[Result "1/2-1/2"]
[ECO "C42"]
[WhiteElo "1565"]
[BlackElo "1768"]
[Annotator "NA RC"]
[PlyCount "152"]
[EventDate "2018.11.04"]
[EventType "swiss"]
[EventCountry "ESP"]
[SourceTitle "playchess.com"]
[Source "ChessBase"]
[SourceQuality "1"]
[TimeControl "40/5400+30:1800+30"]

1. e4 {[%emt 0:00:00]} e5 {[%emt 0:00:00]} 2. Nf3 {[%emt 0:00:00]} Nf6 {[%emt 0:00:00]} 3. Nxe5 {[%emt 0:00:00]} d6 {[%emt 0:00:00]} 4. Nf3 {[%emt 0:00:00]} Nxe4 {[%emt 0:00:00]} 5. d4 {[%emt 0:00:01]} d5 {[%emt 0:00:00]} 6. Bd3 {[%emt 0:00:21]} Be7 {[%emt 0:00:17]} 7. O-O {[%emt 0:02:40]} Nc6 {[%emt 0:00:06]} 8. Re1 {[%emt 0:08:12]} Bg4 {[%emt 0:01:00]} 9. c3 {[%emt 0:01:53]} Nf6 {[%emt 0:03:21]} 10. Nbd2 {[%emt 0:03:07]} O-O {[%emt 0:04:19]} 11. Nf1 {[%emt 0:05:04]} Bh5 {[%emt 0:08:42]} 12. Ng3 {[%emt 0:09:14]} Bg6 {[%emt 0:01:29]} 13. Nf5 {[%emt 0:04:38]} Re8 {[%emt 0:06:02]} 14. N3h4 {[%emt 0:38:45]} Bf8 {[%emt 0:14:56]} 15. Rxe8 {[%emt 0:02:48]} Qxe8 {[%emt 0:00:08]} 16. Bf4 {[%emt 0:07:21]} Qd7 {[%emt 0:02:48]} 17. Nxg6 {[%emt 0:07:51]} hxg6 {[%emt 0:01:40]} 18. Nh4 {[%emt 0:01:31]} Bd6 {[%emt 0:03:56]} 19. Bxd6 {[%emt 0:02:08]} Qxd6 {[%emt 0:00:08]} 20. Nf3 {[%emt 0:00:10]} Re8 {[%emt 0:01:19]} 21. Qd2 {[%emt 0:00:41]} Ne4 {[%emt 0:01:07]} 22. Qc2 {[%emt 0:00:20]} Re6 {[%emt 0:01:44]} 23. Nd2 {[%emt 0:01:31]} Nxd2 {[%emt 0:03:49]} 24. Qxd2 {[%emt 0:00:03]} Qe7 {[%emt 0:00:55]} 25. Kf1 {[%emt 0:00:23]} Kf8 {[%emt 0:01:54]} 26. Re1 {[%emt 0:00:59]} Rxe1+ {[%emt 0:00:07]} 27. Qxe1 {[%emt 0:00:01]} Qxe1+ {[%emt 0:00:06]} 28. Kxe1 {[%emt 0:00:01]} Ke7 {[%emt 0:00:54]} 29. Bc2 {[%emt 0:01:29]} Ke6 {[%emt 0:01:07]} 30. Ke2 {[%emt 0:00:29]} Ne7 {[%emt 0:00:52]} 31. g4 {[%emt 0:00:10]} b6 {[%emt 0:00:48]} 32. Bd3 {[%emt 0:03:06]} c5 {[%emt 0:01:50]} 33. Bb5 {[%emt 0:00:39]} Kd6 {[%emt 0:00:51]} 34. Be8 {[%emt 0:00:39]} Ke6 {[%emt 0:00:48]} 35. Kd2 {[%emt 0:00:13]} Nc8 {[%emt 0:00:54]} 36. dxc5 {[%emt 0:00:53]} bxc5 {[%emt 0:00:06]} 37. f3 {[%emt 0:00:29]} Nd6 {[%emt 0:00:42]} 38. Ba4 {[%emt 0:00:24]} Nc4+ {[%emt 0:01:57]} 39. Kc2 {[%emt 0:00:26]} Ne5 {[%emt 0:00:52]} 40. b4 {[%emt 0:00:00]} cxb4 {[%emt 0:00:00]} 41. cxb4 {[%emt 0:01:41]} Nxf3 {[%emt 0:03:47]} 42. h3 {[%emt 0:00:07]} Ng5 {[%emt 0:01:15]} 43. h4 {[%emt 0:00:31]} Nf3 {[%emt 0:00:05]} 44. h5 {[%emt 0:00:03]} gxh5 {[%emt 0:00:34]} 45. gxh5 {[%emt 0:00:02]} Ne5 {[%emt 0:01:35]} 46. b5 {[%emt 0:01:01]} Nc4 {[%emt 0:00:47]} 47. Kc3 {[%emt 0:00:34]} Ke5 {[%emt 0:00:43]} 48. Bb3 {[%emt 0:00:23]} Nd6 {[%emt 0:03:05]} 49. a4 {[%emt 0:01:15]} f5 {[%emt 0:01:11]} 50. Kb4 {[%emt 0:00:28]} Nb7 {[%emt 0:00:40]} 51. a5 {[%emt 0:01:04]} Kd6 {[%emt 0:00:38]} 52. Ba4 {[%emt 0:01:52]} Nc5 {[%emt 0:01:29]} 53. Bd1 {[%emt 0:02:23]} Nd3+ {[%emt 0:03:10]} 54. Kc3 {[%emt 0:00:42]} Nc5 {[%emt 0:00:42]} 55. Be2 {[%emt 0:00:30]} Nd7 {[%emt 0:01:28]} 56. Kd3 {[%emt 0:02:09]} f4 {[%emt 0:01:50]} 57. Bd1 {[%emt 0:02:24]} Kc5 {[%emt 0:02:25]} 58. Ba4 {[%emt 0:00:28]} Ne5+ {[%emt 0:01:51]} 59. Ke2 {[%emt 0:01:10]} d4 {[%emt 0:05:29]} 60. b6 {[%emt 0:05:03]} axb6 {[%emt 0:00:14]} 61. a6 {[%emt 0:00:01]} Nc6 {[%emt 0:00:13]} 62. Kf3 {[%emt 0:00:12]} b5 {[%emt 0:00:51]} 63. Bd1 {[%emt 0:00:09]} Kb6 {[%emt 0:01:08]} 64. Kxf4 {[%emt 0:00:07]} Kxa6 {[%emt 0:01:28]} 65. Kf5 {[%emt 0:00:19]} Ne7+ {[%emt 0:00:05]} 66. Ke6 {[%emt 0:00:04]} Ng8 {[%emt 0:00:32]} 67. Kf7 {[%emt 0:02:24]} Nf6 {[%emt 0:00:05]} 68. Kxg7 {[%emt 0:00:03]} Nxh5+ {[%emt 0:00:04]} 69. Bxh5 {[%emt 0:00:01]} b4 {[%emt 0:05:09]} 70. Bd1 {[%emt 0:00:14]} Kb5 {[%emt 0:02:31]} 71. Bb3 {[%emt 0:00:40]} Kc5 {[%emt 0:01:08]} 72. Kf6 {[%emt 0:00:25]} d3 {[%emt 0:00:33]} 73. Ke5 {[%emt 0:00:08]} d2 {[%emt 0:00:13]} 74. Ke4 {[%emt 0:00:14]} d1=Q {[%emt 0:00:07]} 75. Bxd1 {[%emt 0:00:05]} Kc4 {[%emt 0:00:03]} 76. Ba4 {[%emt 0:00:05]} Kc3 {[%emt 0:00:12]} 1/2-1/2

[Event "FIDE WCCC G12 2018"]
[Site "Santiago de Compostela"]
[Date "2018.11.07"]
[Round "3"]
[White "Zhai, Pinran"]
[Black "Nurmanova, Alua"]
[Result "0-1"]
[ECO "B95"]
[WhiteElo "1558"]
[BlackElo "1780"]
[Annotator "NA RC"]
[PlyCount "88"]
[EventDate "2018.11.04"]
[EventType "swiss"]
[EventCountry "ESP"]
[SourceTitle "playchess.com"]
[Source "ChessBase"]
[SourceQuality "1"]
[TimeControl "40/5400+30:1800+30"]

1. e4 {[%emt 0:00:00]} c5 {[%emt 0:00:00]} 2. Nf3 {[%emt 0:00:00]} d6 {[%emt 0:00:00]} 3. d4 {[%emt 0:00:00]} cxd4 {[%emt 0:00:00]} 4. Nxd4 {[%emt 0:00:00]} Nf6 {[%emt 0:00:00]} 5. Nc3 {[%emt 0:00:06]} a6 {[%emt 0:00:01]} 6. Bg5 {[%emt 0:00:49]} e6 {[%emt 0:00:33]} 7. Be2 {[%emt 0:00:57]} Be7 {[%emt 0:07:27]} 8. Qd2 {[%emt 0:01:58]} Nbd7 {[%emt 0:06:12]} 9. Be3 {[%emt 0:05:41]} Qc7 {[%emt 0:06:04]} 10. f4 {[%emt 0:00:27]} b5 {[%emt 0:03:58]} 11. a3 {[%emt 0:02:51]} Bb7 {[%emt 0:02:02]} 12. Bf3 {[%emt 0:00:45]} Nc5 {[%emt 0:07:21]} 13. e5 {[%emt 0:07:33]} dxe5 {[%emt 0:05:56]} 14. fxe5 {[%emt 0:00:03]} Nfd7 {[%emt 0:03:09]} 15. Bf4 {[%emt 0:01:46]} Nb6 {[%emt 0:08:05]} 16. O-O-O {[%emt 0:02:23]} O-O-O {[%emt 0:05:38]} 17. Qe2 {[%emt 0:01:07]} Rd7 {[%emt 0:08:37]} 18. Bxb7+ {[%emt 0:05:32]} Qxb7 {[%emt 0:02:48]} 19. Rhf1 {[%emt 0:02:27]} Nc4 {[%emt 0:04:14]} 20. b4 {[%emt 0:01:10]} Qb6 {[%emt 0:12:46]} 21. bxc5 {[%emt 0:01:08]} Qxc5 {[%emt 0:00:16]} 22. Nb1 {[%emt 0:04:54]} Rxd4 {[%emt 0:02:36]} 23. Rxd4 {[%emt 0:02:32]} Qxd4 {[%emt 0:00:06]} 24. c3 {[%emt 0:00:07]} Bxa3+ {[%emt 0:04:31]} 25. Kc2 {[%emt 0:02:46]} Qa7 {[%emt 0:00:57]} 26. Qf3 {[%emt 0:01:38]} Rd8 {[%emt 0:01:43]} 27. Qc6+ {[%emt 0:01:23]} Kb8 {[%emt 0:00:16]} 28. Bg5 {[%emt 0:02:07]} Rc8 {[%emt 0:02:40]} 29. Qe4 {[%emt 0:01:00]} h6 {[%emt 0:00:24]} 30. Bc1 {[%emt 0:04:01]} Bxc1 {[%emt 0:00:13]} 31. Kxc1 {[%emt 0:00:14]} Rc7 {[%emt 0:01:15]} 32. Re1 {[%emt 0:02:00]} Qc5 {[%emt 0:01:16]} 33. Rd1 Qe3+ {[%emt 0:00:28]} 34. Qxe3 {[%emt 0:02:39]} Nxe3 {[%emt 0:00:02]} 35. Rg1 {[%emt 0:00:49]} Ng4 {[%emt 0:00:14]} 36. Re1 {[%emt 0:00:44]} Rc5 {[%emt 0:01:14]} 37. Kd2 {[%emt 0:00:18]} Rxe5 {[%emt 0:00:21]} 38. Rf1 {[%emt 0:00:50]} Rf5 {[%emt 0:00:35]} 39. Rxf5 {[%emt 0:00:30]} exf5 {[%emt 0:00:01]} 40. h3 {[%emt 0:00:00]} Nf6 {[%emt 0:00:00]} 41. Na3 {[%emt 0:00:32]} Kc7 {[%emt 0:00:59]} 42. Nc2 {[%emt 0:00:07]} Kd6 {[%emt 0:00:26]} 43. Kd3 {[%emt 0:00:25]} g6 {[%emt 0:02:01]} 44. Ne3 {[%emt 0:02:19]} Nd5 {[%emt 0:00:52]} 0-1

[Event "FIDE WCCC G12 2018"]
[Site "Santiago de Compostela"]
[Date "2018.11.07"]
[Round "3"]
[White "Kovacsi, Sara Kata"]
[Black "Van Foreest, Machteld"]
[Result "0-1"]
[ECO "D70"]
[WhiteElo "1554"]
[BlackElo "2003"]
[Annotator "NA RC"]
[PlyCount "52"]
[EventDate "2018.11.04"]
[EventType "swiss"]
[EventCountry "ESP"]
[SourceTitle "playchess.com"]
[Source "ChessBase"]
[SourceQuality "1"]
[TimeControl "40/5400+30:1800+30"]

{[%evp 25,51,0,61,-52,-65,-177,-145,-151,-90,-418,-223,-222,200,202,316,-195,-206,-589,-653,-613,-635,-29997,-29998,-29998,-29998,-29998,-29999,-29999]} 1. d4 {[%emt 0:00:00]} Nf6 {[%emt 0:00:00]} 2. c4 {[%emt 0:00:00]} g6 {[%emt 0:00:00]} 3. Nf3 {[%emt 0:00:00]} Bg7 {[%emt 0:00:00]} 4. g3 {[%emt 0:00:14]} O-O {[%emt 0:00:00]} 5. Bg2 {[%emt 0:00:08]} d6 {[%emt 0:00:00]} 6. O-O {[%emt 0:00:45]} c5 {[%emt 0:01:50]} 7. d5 {[%emt 0:01:26]} Nbd7 {[%emt 0:10:08]} 8. Nc3 {[%emt 0:06:53]} Nb6 {[%emt 0:04:01]} 9. Nd2 {[%emt 0:04:03]} e6 {[%emt 0:02:05]} 10. e4 {[%emt 0:01:40] E65: King's Indian: Fianchetto: 6...c5 7 0-0 without d5 by White} (10. a4 exd5 11. cxd5 Ne8 12. e4 h5 13. h3 a5 14. f4 Bd7 15. Nf3 Qc7 16. Kh2 Rb8 17. e5 h4 18. g4 g5 19. e6 fxe6 20. Nxg5 Bxc3 21. bxc3 Nxd5 22. Bxd5 exd5 23. Qxd5+ {1-0 (30) Yuffa,D (2502)-Suleymanyants,O (2268) Kolomna 2016}) 10... exd5 {[%emt 0:02:35]} 11. exd5 {[%emt 0:01:58]} Bf5 $146 {[%emt 0:01:52]} ({Predecessor:} 11... Ng4 12. h3 Ne5 13. Qb3 Re8 14. a3 Bf5 15. Be4 Bxh3 16. Re1 Qf6 17. Bg2 Bxg2 18. Kxg2 {0-1 (35) Vissers,V-Snuverink,L Hengelo 1997}) 12. Re1 {[%emt 0:07:49]} Qd7 {[%emt 0:05:46]} 13. a4 {[%emt 0:09:12]} Bd3 {[%emt 0:11:18]} (13... Rfe8 $11) 14. Qb3 {[%emt 0:02:29]} (14. Re3 $14 Bf5 15. a5) 14... Rfe8 {[%emt 0:04:04]} 15. Rxe8+ {[%emt 0:14:25]} (15. Nce4 $15 Bxe4 16. Nxe4 Nxe4 17. Rxe4) 15... Rxe8 {[%emt 0:00:18]} ({Weaker is} 15... Nxe8 16. a5 $16) 16. Qd1 {[%emt 0:02:42]} Qf5 {[%emt 0:03:38]} ({Günstiger ist} 16... Ng4 17. Bh3 h5) 17. Nb5 $2 {[%emt 0:06:51]} (17. h3 $17 {was the crucial defense.}) 17... Ng4 {[%emt 0:08:00]} (17... Be2 $142 18. Nxd6 Bxd1 19. Nxf5 gxf5) 18. Bf3 {[%emt 0:09:55] [#]} Re2 $4 {[%emt 0:11:21]} (18... Ne5 $1 $19 19. Be4 (19. Nxd6 $2 Nxf3+ 20. Qxf3 Re1+ 21. Kg2 Qxf3+ 22. Kxf3 Bf8 $19) 19... Qd7 20. Bxd3 Nxd3) 19. Nxd6 {[%emt 0:06:08]} Qh5 {[%emt 0:03:18] [#]} 20. h4 $4 {[%emt 0:02:26] [#]} (20. Nf1 $1 $18 {war der einzige Gewinnzug.} Bd4 21. Bxe2 (21. Qxd3 Rxf2 22. Bxg4 Qxg4 $11) 21... Nxf2 22. Bxh5 Nxd1+ 23. Kg2 gxh5 24. Bh6) 20... Bd4 $3 {[%emt 0:09:56]} 21. Bxe2 $2 {[%emt 0:03:45]} (21. N2e4 $17 {war die entscheidende Verteidigung.} Rxf2 22. Nxf2 (22. Nf6+ $2 Kf8 $19) 22... Nxf2 23. Bxh5 Nxd1+ 24. Kg2 gxh5 25. Bh6) 21... Bxf2+ {[%emt 0:00:39]} 22. Kh1 {[%emt 0:08:40]} Bxg3 {[%emt 0:00:32]} 23. N6e4 {[%emt 0:02:20]} Qxh4+ {[%emt 0:00:13]} 24. Kg2 {[%emt 0:01:17]} Qh2+ {[%emt 0:00:06]} 25. Kf3 {[%emt 0:00:28]} Ne5+ {[%emt 0:00:05]} 26. Ke3 {[%emt 0:01:00]} Bf4# {[%emt 0:00:06] Kd4} 0-1

[Event "FIDE WCCC G12 2018"]
[Site "Santiago de Compostela"]
[Date "2018.11.07"]
[Round "3"]
[White "Huseynova, Guluzar"]
[Black "Butenandt, Svenja"]
[Result "0-1"]
[ECO "A46"]
[WhiteElo "1551"]
[BlackElo "1775"]
[Annotator "NA RC"]
[PlyCount "116"]
[EventDate "2018.11.04"]
[EventType "swiss"]
[EventCountry "ESP"]
[SourceTitle "playchess.com"]
[Source "ChessBase"]
[SourceQuality "1"]
[TimeControl "40/5400+30:1800+30"]

1. d4 {[%emt 0:00:00]} Nf6 {[%emt 0:00:00]} 2. Nf3 {[%emt 0:00:00]} e6 {[%emt 0:00:00]} 3. Bf4 {[%emt 0:00:00]} b6 {[%emt 0:00:11]} 4. e3 {[%emt 0:00:06]} Bb7 {[%emt 0:00:13]} 5. Bd3 {[%emt 0:00:32]} Be7 {[%emt 0:03:10]} 6. Nbd2 {[%emt 0:00:45]} Nh5 {[%emt 0:03:02]} 7. Bg3 {[%emt 0:00:35]} Nxg3 {[%emt 0:01:59]} 8. hxg3 {[%emt 0:00:22]} g6 {[%emt 0:01:17]} 9. c3 {[%emt 0:00:49]} c5 {[%emt 0:03:13]} 10. Qe2 {[%emt 0:01:18]} O-O {[%emt 0:02:01]} 11. Nh4 {[%emt 0:07:38]} cxd4 {[%emt 0:14:31]} 12. exd4 {[%emt 0:00:24]} d6 {[%emt 0:07:23]} 13. Qg4 {[%emt 0:07:10]} Kg7 {[%emt 0:04:56]} 14. Qh3 {[%emt 0:14:09]} Rh8 {[%emt 0:07:02]} 15. Nhf3 {[%emt 0:04:54]} h5 {[%emt 0:06:59]} 16. O-O-O {[%emt 0:02:40]} Nc6 {[%emt 0:03:27]} 17. Bc4 {[%emt 0:11:00]} Qc8 {[%emt 0:04:10]} 18. g4 {[%emt 0:06:59]} hxg4 {[%emt 0:06:05]} 19. Qxg4 {[%emt 0:00:22]} e5 {[%emt 0:04:58]} 20. Qxc8 {[%emt 0:12:27]} Raxc8 {[%emt 0:00:18]} 21. dxe5 {[%emt 0:04:21]} Rxh1 {[%emt 0:03:47]} 22. Rxh1 {[%emt 0:00:44]} Nxe5 {[%emt 0:01:30]} 23. Nxe5 {[%emt 0:03:05]} dxe5 {[%emt 0:00:19]} 24. f3 {[%emt 0:02:28]} Bg5 {[%emt 0:01:17]} 25. Be2 {[%emt 0:03:14]} Rd8 {[%emt 0:06:57]} 26. Rd1 {[%emt 0:00:55]} Bd5 {[%emt 0:01:09]} 27. Kc2 {[%emt 0:02:16]} f5 {[%emt 0:02:44]} 28. Nc4 {[%emt 0:02:05]} e4 {[%emt 0:01:46]} 29. b3 {[%emt 0:04:19]} Bb7 {[%emt 0:02:06]} 30. Rxd8 {[%emt 0:01:19]} Bxd8 {[%emt 0:00:05]} 31. Nd6 {[%emt 0:00:08]} Bd5 {[%emt 0:01:06]} 32. c4 {[%emt 0:01:01]} Bc6 {[%emt 0:00:34]} 33. Nc8 {[%emt 0:02:11]} a6 {[%emt 0:00:29]} 34. c5 {[%emt 0:01:58]} bxc5 {[%emt 0:00:22]} 35. Bxa6 {[%emt 0:00:15]} exf3 {[%emt 0:00:22]} 36. gxf3 {[%emt 0:00:05]} Bxf3 {[%emt 0:00:07]} 37. Nd6 {[%emt 0:00:49]} Be7 {[%emt 0:00:31]} 38. Nc4 {[%emt 0:00:23]} Be4+ {[%emt 0:00:56]} 39. Kd1 {[%emt 0:01:21]} g5 {[%emt 0:01:41]} 40. Nd2 {[%emt 0:00:00]} Bc6 {[%emt 0:00:00]} 41. Bc8 {[%emt 0:01:36]} Kg6 {[%emt 0:01:15]} 42. a4 {[%emt 0:01:14]} Bd8 {[%emt 0:00:15]} 43. Nc4 {[%emt 0:00:17]} Bd5 {[%emt 0:00:53]} 44. Ne5+ {[%emt 0:01:41]} Kg7 {[%emt 0:08:37]} 45. Bxf5 {[%emt 0:01:09]} Kf6 {[%emt 0:05:09]} 46. Nd7+ {[%emt 0:02:17]} Kxf5 {[%emt 0:00:06]} 47. Nxc5 {[%emt 0:00:06]} Be7 {[%emt 0:00:18]} 48. Nd3 {[%emt 0:05:18]} Bxb3+ {[%emt 0:00:09]} 49. Ke1 {[%emt 0:00:22]} Bxa4 {[%emt 0:00:12]} 50. Kf2 {[%emt 0:00:13]} Bc2 {[%emt 0:02:03]} 51. Ne1 {[%emt 0:00:42]} Be4 {[%emt 0:00:26]} 52. Kg3 {[%emt 0:00:51]} Bb4 {[%emt 0:00:30]} 53. Ng2 {[%emt 0:00:09]} Bxg2 {[%emt 0:00:10]} 54. Kxg2 {[%emt 0:00:03]} g4 {[%emt 0:00:33]} 55. Kg3 {[%emt 0:00:09]} Bd6+ {[%emt 0:00:27]} 56. Kg2 {[%emt 0:00:10]} Kf4 {[%emt 0:00:15]} 57. Kf2 {[%emt 0:00:07]} g3+ {[%emt 0:00:20]} 58. Kg2 {[%emt 0:00:08]} Kg4 {[%emt 0:00:13]} 0-1

[Event "FIDE WCCC G12 2018"]
[Site "Santiago de Compostela"]
[Date "2018.11.07"]
[Round "3"]
[White "Mamardashvili, Ana"]
[Black "Eswaran, Aksithi"]
[Result "1-0"]
[ECO "B20"]
[WhiteElo "1527"]
[BlackElo "1760"]
[Annotator "NA RC"]
[PlyCount "155"]
[EventDate "2018.11.04"]
[EventType "swiss"]
[EventCountry "ESP"]
[SourceTitle "playchess.com"]
[Source "ChessBase"]
[SourceQuality "1"]
[TimeControl "40/5400+30:1800+30"]

1. e4 {[%emt 0:00:00]} c5 {[%emt 0:00:00]} 2. b3 {[%emt 0:00:00]} d6 {[%emt 0:00:00]} 3. Bb2 {[%emt 0:00:00]} Nf6 {[%emt 0:00:00]} 4. Bb5+ {[%emt 0:00:32]} Bd7 {[%emt 0:00:16]} 5. Bxd7+ {[%emt 0:00:12]} Nbxd7 {[%emt 0:00:38]} 6. d3 {[%emt 0:00:22]} g6 {[%emt 0:04:30]} 7. f4 {[%emt 0:04:15]} Bg7 {[%emt 0:01:47]} 8. Nd2 {[%emt 0:03:04]} O-O {[%emt 0:01:36]} 9. Rb1 {[%emt 0:04:19]} b5 {[%emt 0:09:55]} 10. Nh3 {[%emt 0:05:54]} Rc8 {[%emt 0:04:48]} 11. O-O {[%emt 0:04:47]} Nb6 {[%emt 0:13:54]} 12. c4 {[%emt 0:05:35]} bxc4 {[%emt 0:01:45]} 13. dxc4 {[%emt 0:01:17]} Qd7 {[%emt 0:02:04]} 14. Nf2 {[%emt 0:02:08]} Rb8 {[%emt 0:14:51]} 15. Qe2 {[%emt 0:10:10]} a5 {[%emt 0:04:24]} 16. e5 {[%emt 0:07:32]} Ne8 {[%emt 0:12:43]} 17. Nde4 {[%emt 0:09:43]} Qc6 {[%emt 0:10:20]} 18. exd6 {[%emt 0:03:25]} Nxd6 {[%emt 0:01:11]} 19. Nxd6 {[%emt 0:01:25]} exd6 {[%emt 0:00:47]} 20. Bxg7 {[%emt 0:01:21]} Kxg7 {[%emt 0:00:22]} 21. f5 {[%emt 0:04:32]} Nd7 {[%emt 0:05:26]} 22. Ng4 {[%emt 0:03:47]} h5 {[%emt 0:04:33]} 23. f6+ {[%emt 0:06:33]} Kh7 {[%emt 0:00:24]} 24. Ne3 {[%emt 0:02:42]} Rbe8 {[%emt 0:00:53]} 25. Qd2 {[%emt 0:01:09]} Ne5 {[%emt 0:01:23]} 26. Nd5 {[%emt 0:01:47]} Re6 {[%emt 0:00:21]} 27. h3 {[%emt 0:05:02]} a4 {[%emt 0:01:11]} 28. Qc2 {[%emt 0:03:14]} axb3 {[%emt 0:01:33]} 29. axb3 {[%emt 0:00:06]} Rfe8 {[%emt 0:00:26]} 30. Nf4 {[%emt 0:02:38]} Rxf6 {[%emt 0:00:47]} 31. Nxh5 {[%emt 0:00:22]} Rxf1+ {[%emt 0:00:24]} 32. Rxf1 {[%emt 0:00:03]} Re6 {[%emt 0:01:31]} 33. Nf6+ {[%emt 0:00:38]} Kg7 {[%emt 0:00:11]} 34. Nd5 {[%emt 0:00:41]} Qc8 {[%emt 0:00:39]} 35. Qf2 {[%emt 0:01:19]} Qb7 {[%emt 0:00:28]} 36. Qb2 {[%emt 0:01:59]} Kg8 {[%emt 0:00:54]} 37. Nf6+ {[%emt 0:00:40]} Kg7 {[%emt 0:00:08]} 38. Ng4 {[%emt 0:00:50]} Kf8 {[%emt 0:00:34]} 39. Nxe5 {[%emt 0:02:06]} Rxe5 {[%emt 0:00:10]} 40. Qd2 {[%emt 0:00:00]} Qe7 {[%emt 0:00:00]} 41. Qc3 {[%emt 0:04:39]} Qg5 {[%emt 0:03:05]} 42. Rd1 {[%emt 0:03:30]} Re2 {[%emt 0:01:02]} 43. Qf3 {[%emt 0:01:21]} Re3 {[%emt 0:01:47]} 44. Qa8+ {[%emt 0:03:03]} Kg7 {[%emt 0:00:06]} 45. Qa1+ {[%emt 0:00:18]} Kh7 {[%emt 0:06:06]} 46. Rf1 {[%emt 0:02:54]} Qe7 {[%emt 0:02:06]} 47. Qb1 {[%emt 0:02:31]} Kg7 {[%emt 0:00:44]} 48. Qa1+ {[%emt 0:01:22]} Kh7 {[%emt 0:01:23]} 49. Qb1 {[%emt 0:00:20]} Qb7 {[%emt 0:01:39]} 50. Qd1 {[%emt 0:01:39]} Qd7 {[%emt 0:04:17]} 51. Qd5 {[%emt 0:01:42]} Kg7 {[%emt 0:00:31]} 52. Qd1 {[%emt 0:01:51]} Qe7 {[%emt 0:02:18]} 53. Qa1+ {[%emt 0:01:56]} Kh7 {[%emt 0:00:31]} 54. Qd1 {[%emt 0:00:43]} Qe6 {[%emt 0:00:39]} 55. Qb1 {[%emt 0:01:09]} Kg8 {[%emt 0:01:36]} 56. Qd1 {[%emt 0:01:33]} Rg3 {[%emt 0:00:54]} 57. Kh2 {[%emt 0:01:40]} Qe5 {[%emt 0:00:45]} 58. Kh1 {[%emt 0:00:38]} Qb2 {[%emt 0:05:33]} 59. Qd5 {[%emt 0:00:43]} Qg7 {[%emt 0:02:43]} 60. Qxd6 {[%emt 0:00:19]} Rxb3 {[%emt 0:00:34]} 61. Qxc5 {[%emt 0:00:28]} Rc3 {[%emt 0:01:10]} 62. Qc7 {[%emt 0:01:03]} Rc2 {[%emt 0:01:09]} 63. c5 {[%emt 0:01:14]} f5 {[%emt 0:01:08]} 64. Qb8+ {[%emt 0:00:57]} Kh7 {[%emt 0:00:19]} 65. Qb6 {[%emt 0:00:47]} Rb2 {[%emt 0:00:35]} 66. Qd6 {[%emt 0:01:11]} Rc2 {[%emt 0:01:06]} 67. c6 {[%emt 0:01:01]} Qc3 {[%emt 0:01:01]} 68. Qe7+ {[%emt 0:01:08]} Kg8 {[%emt 0:00:29]} 69. Rd1 {[%emt 0:01:14]} Rc1 {[%emt 0:00:24]} 70. Qd8+ {[%emt 0:00:33]} Kg7 {[%emt 0:00:22]} 71. Qc7+ {[%emt 0:00:22]} Kg8 {[%emt 0:00:14]} 72. Rxc1 {[%emt 0:00:36]} Qxc1+ {[%emt 0:00:13]} 73. Kh2 {[%emt 0:00:04]} f4 {[%emt 0:00:43]} 74. Qd8+ {[%emt 0:00:13]} Kg7 {[%emt 0:00:25]} 75. c7 {[%emt 0:01:22]} Qc3 {[%emt 0:01:00]} 76. Qe7+ {[%emt 0:00:33]} Kg8 {[%emt 0:00:17]} 77. Qe6+ {[%emt 0:00:27]} Kg7 {[%emt 0:00:07]} 78. c8=Q {[%emt 0:00:27]} 1-0

[Event "FIDE WCCC G12 2018"]
[Site "Santiago de Compostela"]
[Date "2018.11.07"]
[Round "3"]
[White "Kaldarova, Ayaulym"]
[Black "Francisco Guecamburu, Candela Be"]
[Result "1-0"]
[ECO "B27"]
[WhiteElo "1526"]
[BlackElo "1725"]
[Annotator "NA RC"]
[PlyCount "95"]
[EventDate "2018.11.04"]
[EventType "swiss"]
[EventCountry "ESP"]
[SourceTitle "playchess.com"]
[Source "ChessBase"]
[SourceQuality "1"]
[TimeControl "40/5400+30:1800+30"]

1. e4 {[%emt 0:00:00]} c5 {[%emt 0:00:00]} 2. Nf3 {[%emt 0:00:00]} g6 {[%emt 0:00:00]} 3. d4 {[%emt 0:00:19]} cxd4 {[%emt 0:00:00]} 4. Nxd4 {[%emt 0:00:08]} Bg7 {[%emt 0:00:00]} 5. Nc3 {[%emt 0:00:26]} Nc6 {[%emt 0:00:18]} 6. Nb3 {[%emt 0:01:21]} Nf6 {[%emt 0:00:41]} 7. Be2 {[%emt 0:01:12]} O-O {[%emt 0:00:59]} 8. O-O {[%emt 0:01:15]} a5 {[%emt 0:02:22]} 9. a4 {[%emt 0:02:44]} d6 {[%emt 0:01:43]} 10. Re1 {[%emt 0:01:42]} Be6 {[%emt 0:02:08]} 11. Bg5 {[%emt 0:03:11]} Rc8 {[%emt 0:13:01]} 12. Bf1 {[%emt 0:02:46]} Nb4 {[%emt 0:04:37]} 13. Qd2 {[%emt 0:05:22]} Nd7 {[%emt 0:08:12]} 14. Rad1 {[%emt 0:05:27]} b6 {[%emt 0:13:13]} 15. Bb5 {[%emt 0:09:42]} f6 {[%emt 0:13:26]} 16. Bh4 {[%emt 0:07:19]} Nc5 {[%emt 0:01:44]} 17. Nd4 {[%emt 0:03:26]} Bd7 {[%emt 0:02:46]} 18. Nd5 {[%emt 0:07:19]} Bxb5 {[%emt 0:15:58]} 19. axb5 {[%emt 0:00:51]} Nxd5 {[%emt 0:01:33]} 20. Nc6 {[%emt 0:04:47]} Qc7 {[%emt 0:02:52]} 21. exd5 {[%emt 0:00:21]} Rce8 {[%emt 0:00:38]} 22. f4 {[%emt 0:02:35]} Rf7 {[%emt 0:03:13]} 23. Bf2 {[%emt 0:01:15]} Nd7 {[%emt 0:04:56]} 24. Re2 {[%emt 0:04:10]} Bf8 {[%emt 0:01:23]} 25. Qc3 {[%emt 0:01:17]} Qb7 {[%emt 0:00:23]} 26. Rde1 {[%emt 0:01:07]} Nb8 {[%emt 0:01:10]} 27. Qe3 {[%emt 0:01:24]} Nd7 {[%emt 0:00:14]} 28. Qg3 {[%emt 0:01:16]} Kh8 {[%emt 0:01:05]} 29. Re6 {[%emt 0:01:48]} Qc8 {[%emt 0:02:21]} 30. Qe3 {[%emt 0:02:34]} Qc7 {[%emt 0:00:17]} 31. Qa3 {[%emt 0:00:59]} Qc8 {[%emt 0:00:59]} 32. Bd4 {[%emt 0:01:43]} Kg8 {[%emt 0:00:43]} 33. c4 {[%emt 0:03:04]} Kh8 {[%emt 0:01:34]} 34. b4 {[%emt 0:02:39]} axb4 {[%emt 0:00:10]} 35. Qxb4 {[%emt 0:00:07]} Kg8 {[%emt 0:00:17]} 36. Ra1 {[%emt 0:00:38]} Nc5 {[%emt 0:00:52]} 37. Bxc5 {[%emt 0:00:47]} dxc5 {[%emt 0:00:05]} 38. Qe1 {[%emt 0:00:46]} f5 {[%emt 0:00:55]} 39. Ra6 {[%emt 0:00:52]} Kh8 {[%emt 0:00:59]} 40. Rxb6 {[%emt 0:00:00]} Kg8 {[%emt 0:00:00]} 41. Rb8 {[%emt 0:04:46]} Qxb8 {[%emt 0:03:05]} 42. Nxb8 {[%emt 0:00:10]} Rxb8 {[%emt 0:00:04]} 43. Qa5 {[%emt 0:00:36]} Bg7 {[%emt 0:00:15]} 44. Qa7 {[%emt 0:00:26]} Bd4+ {[%emt 0:00:22]} 45. Kf1 {[%emt 0:00:10]} Rd8 {[%emt 0:00:49]} 46. b6 {[%emt 0:00:31]} Rff8 {[%emt 0:01:04]} 47. b7 {[%emt 0:02:48]} Kf7 {[%emt 0:00:29]} 48. Rxe7+ {[%emt 0:00:20]} 1-0